[Event "FIDE WCCC Girls-12 2024"]
[Site "Montesilvano"]
[Date "2024.11.22"]
[Round "7.14"]
[White "Telyuk, Anastasiya"]
[Black "Pratitee Bordoloi"]
[Result "0-1"]
[Annotator "NA RC"]
[ECO "B12"]
[WhiteElo "1603"]
[BlackElo "1929"]
[PlyCount "60"]
[EventDate "2024.11.18"]
[EventType "swiss"]
[EventCountry "ITA"]
[SourceTitle "playchess.com"]
[Source "ChessBase"]
[SourceQuality "1"]
[TimeControl "5400+30"]

1. e4 {[%emt 0:00:03]} c6 {[%emt 0:00:09]} 2. d4 {[%emt 0:00:07]} d5 {[%emt 0:00:08]} 3. e5 {[%emt 0:00:13]} Bf5 {[%emt 0:00:16]} 4. c4 {[%emt 0:00:09]} e6 {[%emt 0:00:33]} 5. Nc3 {[%emt 0:00:09]} Ne7 {[%emt 0:00:47]} 6. a3 {[%emt 0:00:36]} h6 {[%emt 0:01:00]} 7. c5 {[%emt 0:00:57]} Nd7 {[%emt 0:01:19]} 8. b4 {[%emt 0:01:30]} b6 {[%emt 0:02:33]} 9. Nf3 {[%emt 0:04:57]} a5 {[%emt 0:03:31]} 10. Be3 {[%emt 0:00:29]} Qc7 {[%emt 0:01:37]} 11. Be2 {[%emt 0:03:34]} g5 {[%emt 0:03:36]} 12. h3 {[%emt 0:06:00]} Bg7 {[%emt 0:01:32]} 13. O-O {[%emt 0:01:42]} O-O {[%emt 0:03:24]} 14. Qd2 {[%emt 0:03:54]} Bh7 {[%emt 0:03:27]} 15. Nh2 $17 {[%emt 0:06:42]} (15. Rfe1 $11 {remains equal.}) 15... Nf5 {[%emt 0:03:10]} 16. Ng4 {[%emt 0:04:55]} Rfd8 {[%emt 0:06:23]} 17. Na4 {[%emt 0:26:39]} Kh8 {[%emt 0:11:09]} 18. Qc1 {[%emt 0:09:14]} bxc5 {[%emt 0:05:15]} 19. bxc5 {[%emt 0:00:37]} Rab8 {[%emt 0:01:07]} 20. Qc3 {[%emt 0:07:28]} Nxe5 {[%emt 0:07:36]} 21. dxe5 {[%emt 0:11:05]} d4 {[%emt 0:00:23]} 22. Bxd4 {[%emt 0:04:08]} Nxd4 {[%emt 0:01:12]} 23. Bc4 {[%emt 0:02:34]} Bf5 {[%emt 0:08:25]} 24. Rad1 {[%emt 0:03:18]} Bxe5 {[%emt 0:06:27]} 25. Nxe5 {[%emt 0:00:44]} Qxe5 {[%emt 0:00:03]} 26. Rfe1 {[%emt 0:00:26]} Qg7 {[%emt 0:00:39]} 27. Rd2 {[%emt 0:01:02]} g4 {[%emt 0:01:09]} 28. hxg4 {[%emt 0:00:36]} Bxg4 {[%emt 0:03:27]} 29. Re4 {[%emt 0:00:25]} Bf3 {[%emt 0:00:53]} 30. Bf1 {[%emt 0:00:41]} Bxe4 {[%emt 0:00:09]} 0-1

[Event "FIDE WCCC Girls-12 2024"]
[Site "Montesilvano"]
[Date "2024.11.22"]
[Round "7.16"]
[White "Rzadkowska, Kaja"]
[Black "Gailevska, Milana"]
[Result "0-1"]
[Annotator "NA RC"]
[ECO "C09"]
[WhiteElo "1798"]
[BlackElo "1698"]
[PlyCount "138"]
[EventDate "2024.11.18"]
[EventType "swiss"]
[EventCountry "ITA"]
[SourceTitle "playchess.com"]
[Source "ChessBase"]
[SourceQuality "1"]
[TimeControl "5400+30"]

1. e4 {[%emt 0:00:01]} e6 {[%emt 0:00:06]} 2. d4 {[%emt 0:00:04]} d5 {[%emt 0:00:04]} 3. Nd2 {[%emt 0:00:04]} c5 {[%emt 0:00:06]} 4. exd5 {[%emt 0:00:13]} exd5 {[%emt 0:00:07]} 5. Ngf3 {[%emt 0:00:32]} Nc6 {[%emt 0:00:26]} 6. Bb5 {[%emt 0:00:41]} Bd6 {[%emt 0:00:16]} 7. dxc5 {[%emt 0:00:13]} Bxc5 {[%emt 0:00:05]} 8. O-O {[%emt 0:00:17]} Nge7 {[%emt 0:00:08]} 9. Nb3 {[%emt 0:01:16]} Bd6 {[%emt 0:00:22]} 10. Re1 {[%emt 0:02:12]} O-O {[%emt 0:00:19]} 11. c3 {[%emt 0:05:41]} Bg4 {[%emt 0:04:54]} 12. Be2 {[%emt 0:02:17]} Re8 {[%emt 0:01:37]} 13. Bg5 {[%emt 0:04:58]} h6 {[%emt 0:03:08]} 14. Bh4 {[%emt 0:01:10]} a6 {[%emt 0:02:47]} 15. Qd2 {[%emt 0:06:32]} Qc7 {[%emt 0:09:03]} 16. Bg3 {[%emt 0:01:17]} Bxg3 {[%emt 0:00:57]} 17. hxg3 {[%emt 0:00:20]} Rad8 {[%emt 0:00:33]} 18. Nfd4 {[%emt 0:06:57]} Bxe2 {[%emt 0:01:52]} 19. Rxe2 {[%emt 0:03:01]} Ng6 {[%emt 0:03:56]} 20. Rae1 {[%emt 0:04:01]} Rxe2 {[%emt 0:04:35]} 21. Rxe2 {[%emt 0:11:18]} Nxd4 {[%emt 0:09:37]} 22. Nxd4 {[%emt 0:02:36]} Rc8 {[%emt 0:09:41]} 23. Re3 {[%emt 0:05:52]} Kf8 {[%emt 0:05:18]} 24. Nf5 {[%emt 0:12:05]} Qd7 {[%emt 0:05:05]} 25. g4 {[%emt 0:03:38]} b5 {[%emt 0:10:20]} 26. Rd3 {[%emt 0:08:13]} Rd8 {[%emt 0:00:59]} 27. Qe3 {[%emt 0:01:06]} Qc6 {[%emt 0:04:48]} 28. b3 {[%emt 0:05:34]} Qe6 {[%emt 0:03:26]} 29. Qd2 {[%emt 0:03:03]} Qc6 {[%emt 0:04:59]} 30. Ne3 {[%emt 0:02:22]} Nf4 {[%emt 0:07:54]} 31. Rd4 {[%emt 0:00:21]} Ne6 {[%emt 0:00:20]} 32. Rxd5 {[%emt 0:01:08]} Rxd5 {[%emt 0:00:41]} 33. Qxd5 {[%emt 0:02:48]} Qxd5 {[%emt 0:00:40]} 34. Nxd5 {[%emt 0:00:01]} Nc5 {[%emt 0:00:31]} 35. Kf1 {[%emt 0:02:16]} Nd3 {[%emt 0:02:11]} 36. Nb4 {[%emt 0:00:45]} Nxb4 {[%emt 0:01:49]} 37. cxb4 {[%emt 0:00:01]} Ke7 {[%emt 0:00:07]} 38. Ke2 {[%emt 0:00:07]} Ke6 {[%emt 0:00:21]} 39. Ke3 {[%emt 0:01:25]} Kd5 {[%emt 0:01:36]} 40. f4 {[%emt 0:01:17]} g6 {[%emt 0:02:15]} 41. Kd3 {[%emt 0:00:20]} f6 {[%emt 0:00:41]} 42. Ke3 {[%emt 0:00:24]} g5 {[%emt 0:01:13]} 43. g3 {[%emt 0:00:10]} gxf4+ {[%emt 0:00:52]} 44. gxf4 {[%emt 0:02:12]} Kd6 {[%emt 0:00:21]} 45. Kd4 {[%emt 0:00:08]} Ke6 {[%emt 0:00:14]} 46. Ke4 {[%emt 0:00:27]} f5+ {[%emt 0:00:27]} 47. Kf3 {[%emt 0:01:05]} fxg4+ {[%emt 0:00:42]} 48. Kxg4 {[%emt 0:00:01]} Kf6 {[%emt 0:00:06]} 49. a4 {[%emt 0:00:49]} Kg6 {[%emt 0:00:28]} 50. f5+ {[%emt 0:01:17]} Kf6 {[%emt 0:00:05]} 51. Kf4 {[%emt 0:00:43]} h5 {[%emt 0:00:37]} 52. a5 {[%emt 0:00:24]} h4 {[%emt 0:00:13]} 53. Kg4 {[%emt 0:00:01]} h3 {[%emt 0:00:07]} 54. Kxh3 {[%emt 0:00:03]} Kxf5 {[%emt 0:00:04]} 55. Kg3 {[%emt 0:00:13]} Ke4 {[%emt 0:00:09]} 56. Kf2 {[%emt 0:00:07]} Kd3 {[%emt 0:00:15]} 57. Ke1 {[%emt 0:00:13]} Kc3 {[%emt 0:00:14]} 58. Kd1 {[%emt 0:00:06]} Kxb3 {[%emt 0:00:12]} 59. Kc1 {[%emt 0:00:05]} Kxb4 {[%emt 0:00:05]} 60. Kb2 {[%emt 0:00:05]} Kxa5 {[%emt 0:00:11]} 61. Ka3 {[%emt 0:00:06]} b4+ {[%emt 0:00:23]} 62. Kb3 {[%emt 0:00:05]} Kb5 {[%emt 0:00:10]} 63. Kb2 {[%emt 0:00:03]} a5 {[%emt 0:00:05]} 64. Ka2 {[%emt 0:00:03]} a4 {[%emt 0:00:08]} 65. Kb2 {[%emt 0:00:03]} Kc4 {[%emt 0:00:15]} 66. Kc2 {[%emt 0:00:42]} a3 {[%emt 0:00:22]} 67. Kb1 {[%emt 0:00:04]} Kb3 {[%emt 0:00:09]} 68. Ka1 {[%emt 0:00:05]} Kc2 {[%emt 0:00:08]} 69. Ka2 {[%emt 0:00:03]} b3+ {[%emt 0:00:09]} 0-1

[Event "FIDE WCCC Girls-12 2024"]
[Site "Montesilvano"]
[Date "2024.11.22"]
[Round "7.21"]
[White "Liu, Jingyu"]
[Black "Li, Peishan"]
[Result "0-1"]
[Annotator "NA RC"]
[ECO "D35"]
[WhiteElo "1680"]
[BlackElo "1729"]
[PlyCount "70"]
[EventDate "2024.11.18"]
[EventType "swiss"]
[EventCountry "ITA"]
[SourceTitle "playchess.com"]
[Source "ChessBase"]
[SourceQuality "1"]
[TimeControl "5400+30"]

1. d4 {[%emt 0:00:02]} Nf6 {[%emt 0:00:07]} 2. c4 {[%emt 0:00:05]} e6 {[%emt 0:00:03]} 3. Nc3 {[%emt 0:00:07]} d5 {[%emt 0:00:03]} 4. cxd5 {[%emt 0:00:09]} exd5 {[%emt 0:00:04]} 5. Bg5 {[%emt 0:00:07]} Be7 {[%emt 0:00:04]} 6. e3 {[%emt 0:00:06]} h6 {[%emt 0:00:06]} 7. Bf4 {[%emt 0:00:05]} O-O {[%emt 0:00:51]} 8. Bd3 {[%emt 0:00:08]} c6 {[%emt 0:01:44]} 9. Nf3 {[%emt 0:00:06]} Be6 {[%emt 0:01:07]} 10. h3 {[%emt 0:00:38]} Nbd7 {[%emt 0:00:28]} 11. O-O {[%emt 0:00:12]} Re8 {[%emt 0:00:54]} 12. Qc2 {[%emt 0:01:17]} a5 {[%emt 0:02:05]} 13. Na4 {[%emt 0:06:24]} Rc8 {[%emt 0:10:03]} 14. a3 {[%emt 0:02:45]} Ne4 {[%emt 0:11:27]} 15. Bxe4 {[%emt 0:18:24]} dxe4 {[%emt 0:00:04]} 16. Ne5 {[%emt 0:00:08]} Nxe5 {[%emt 0:13:14]} 17. Bxe5 {[%emt 0:00:53]} Bd5 {[%emt 0:02:05]} 18. Qd2 {[%emt 0:09:05]} Bb3 {[%emt 0:22:34]} 19. Nc3 {[%emt 0:01:30]} Bd6 {[%emt 0:02:22]} 20. Nxe4 {[%emt 0:14:55]} Bxe5 {[%emt 0:00:13]} 21. dxe5 {[%emt 0:00:06]} Rxe5 {[%emt 0:00:16]} 22. Qc3 {[%emt 0:00:47]} Rb5 {[%emt 0:08:37]} 23. f3 {[%emt 0:16:37]} a4 {[%emt 0:03:24]} 24. Rf2 {[%emt 0:00:44]} Rd5 {[%emt 0:00:55]} 25. Nc5 {[%emt 0:07:23]} Qb6 {[%emt 0:05:19]} 26. Nxb3 {[%emt 0:04:13]} axb3 {[%emt 0:00:05]} 27. e4 {[%emt 0:01:18]} Rd7 {[%emt 0:04:35]} 28. Re1 {[%emt 0:02:09]} c5 {[%emt 0:00:51]} 29. Re3 {[%emt 0:00:27]} c4 {[%emt 0:00:19]} 30. f4 {[%emt 0:01:46]} Rcd8 {[%emt 0:01:36]} 31. Rff3 {[%emt 0:01:10]} Rd3 {[%emt 0:00:37]} 32. Qb4 {[%emt 0:01:39]} Qd4 {[%emt 0:00:11]} 33. Kf2 {[%emt 0:02:24]} Qxb2+ {[%emt 0:00:28]} 34. Re2 {[%emt 0:00:11]} Rd2 {[%emt 0:01:20]} 35. Rfe3 {[%emt 0:00:41]} c3 {[%emt 0:02:20]} 0-1

[Event "FIDE WCCC Girls-12 2024"]
[Site "Montesilvano"]
[Date "2024.11.22"]
[Round "7.29"]
[White "Sunea, Sara Maria"]
[Black "Ordonez Alarcon, Daniela"]
[Result "1-0"]
[Annotator "NA RC"]
[ECO "C28"]
[WhiteElo "1823"]
[BlackElo "1606"]
[PlyCount "107"]
[EventDate "2024.11.18"]
[EventType "swiss"]
[EventCountry "ITA"]
[SourceTitle "playchess.com"]
[Source "ChessBase"]
[SourceQuality "1"]
[TimeControl "5400+30"]

1. e4 {[%emt 0:00:05]} e5 {[%emt 0:00:24]} 2. Bc4 {[%emt 0:00:05]} Nf6 {[%emt 0:02:35]} 3. d3 {[%emt 0:00:08]} Nc6 {[%emt 0:00:12]} 4. Nc3 {[%emt 0:00:07]} Bb4 {[%emt 0:01:09]} 5. Nge2 {[%emt 0:00:12]} d5 {[%emt 0:08:08]} 6. exd5 {[%emt 0:02:13]} Nxd5 {[%emt 0:00:14]} 7. Bd2 {[%emt 0:02:44]} Be6 {[%emt 0:03:29]} 8. Bb5 {[%emt 0:05:47]} Qd7 {[%emt 0:07:08]} 9. O-O {[%emt 0:01:20]} Bxc3 {[%emt 0:05:45]} 10. Nxc3 {[%emt 0:00:41]} a6 {[%emt 0:01:21]} 11. Ba4 {[%emt 0:01:31]} O-O {[%emt 0:03:18]} 12. Re1 {[%emt 0:01:03]} b5 {[%emt 0:00:50]} 13. Bb3 {[%emt 0:00:31]} f5 {[%emt 0:05:09]} 14. Qf3 {[%emt 0:08:18]} Nd4 {[%emt 0:03:45]} 15. Qd1 {[%emt 0:08:01]} Qd6 {[%emt 0:09:17]} 16. Ne2 {[%emt 0:11:06]} Nxb3 {[%emt 0:01:09]} 17. axb3 {[%emt 0:00:08]} f4 {[%emt 0:07:03]} 18. f3 {[%emt 0:12:53]} Rf6 {[%emt 0:07:14]} 19. Nc3 {[%emt 0:02:27]} Rg6 {[%emt 0:09:51]} 20. Kh1 {[%emt 0:00:38]} Re8 {[%emt 0:01:25]} 21. Nxd5 {[%emt 0:02:01]} Bxd5 {[%emt 0:00:16]} 22. Bxf4 {[%emt 0:00:35]} Qf6 {[%emt 0:02:10]} 23. Bg3 {[%emt 0:05:49]} h5 {[%emt 0:03:12]} 24. c4 {[%emt 0:16:13]} Bb7 {[%emt 0:03:41]} 25. Bf2 {[%emt 0:01:48]} Rf8 {[%emt 0:01:35]} 26. Re3 {[%emt 0:02:08]} h4 {[%emt 0:03:00]} 27. h3 {[%emt 0:00:40]} Qg5 {[%emt 0:00:04]} 28. Qf1 {[%emt 0:01:14]} Qh5 {[%emt 0:01:20]} 29. Rae1 {[%emt 0:03:27]} Rxf3 {[%emt 0:10:16]} 30. gxf3 {[%emt 0:04:27]} Bxf3+ {[%emt 0:00:00]} 31. Kh2 {[%emt 0:01:06]} Rg2+ {[%emt 0:00:00]} 32. Qxg2 {[%emt 0:00:06]} Bxg2 {[%emt 0:00:00]} 33. Kxg2 {[%emt 0:00:04]} Qg5+ {[%emt 0:00:00]} 34. Kf1 {[%emt 0:02:05]} Qf5 {[%emt 0:00:00]} 35. Ke2 {[%emt 0:01:47]} g5 {[%emt 0:00:28]} 36. Rg1 {[%emt 0:00:13]} Kh7 {[%emt 0:00:25]} 37. Rg4 {[%emt 0:00:39]} Qf6 {[%emt 0:01:04]} 38. Rf3 {[%emt 0:01:30]} Qg6 {[%emt 0:00:12]} 39. Be3 {[%emt 0:00:39]} bxc4 {[%emt 0:00:48]} 40. bxc4 {[%emt 0:00:14]} Qe6 {[%emt 0:01:22]} 41. Bxg5 {[%emt 0:00:51]} a5 {[%emt 0:00:45]} 42. Rxh4+ {[%emt 0:01:33]} Kg8 {[%emt 0:00:45]} 43. Rg4 {[%emt 0:00:34]} Kh7 {[%emt 0:00:11]} 44. Rf6 {[%emt 0:01:00]} Qe8 {[%emt 0:00:29]} 45. Be3 {[%emt 0:00:33]} Qh5 {[%emt 0:01:31]} 46. Rh6+ {[%emt 0:00:07]} Qxh6 {[%emt 0:00:00]} 47. Bxh6 {[%emt 0:00:06]} Kxh6 {[%emt 0:00:00]} 48. Rg8 {[%emt 0:00:08]} Kh5 {[%emt 0:00:00]} 49. Kf2 {[%emt 0:00:06]} Kh4 {[%emt 0:00:00]} 50. Kg2 {[%emt 0:00:05]} Kh5 {[%emt 0:00:07]} 51. Kf3 {[%emt 0:00:13]} Kh4 {[%emt 0:00:28]} 52. Ke4 {[%emt 0:00:16]} Kxh3 {[%emt 0:00:09]} 53. Kxe5 {[%emt 0:00:03]} Kh4 {[%emt 0:00:13]} 54. Ke4 {[%emt 0:05:12]} 1-0